bitfinex/quotes_SOLUSD_20241113
["timestamp","ask_amount","ask_price","bid_price","bid_amount"]
[1731497539524,20.12549,207.7,207.57,1.4452]
[1731497539902,0.12549,207.68,207.56,12.8044]
[1731497540209,20.12549,207.68,207.56,11.3591]
[1731497540401,20.12549,207.66,207.54,30.1653]
[1731497540597,20.12549,207.64,207.54,30.1653]
[1731497540798,20.12549,207.64,207.51,13.5437]
[1731497541619,20.0,207.65,207.51,13.5437]
[1731497541820,0.12549,207.64,207.51,13.5437]
[1731497542001,4.8162,207.63,207.51,13.5437]
[1731497542316,4.8162,207.63,207.52,43.876884]
[1731497542520,4.8162,207.63,207.52,43.776884]
[1731497543214,0.12549,207.62,207.51,17.1579]
[1731497543534,20.12549,207.62,207.51,17.1579]
[1731497544119,0.12549,207.6,207.51,15.7122]
[1731497545412,4.8167,207.61,207.51,15.7122]
[1731497545413,4.8171,207.59,207.51,15.7122]
[1731497546521,0.12549,207.59,207.51,15.7122]
[1731497546709,16.8592,207.6,207.51,12.098]
[1731497546905,4.8169,207.6,207.51,13.5437]
[1731497547217,4.8169,207.6,207.52,23.776884]
[1731497547410,16.8532,207.68,207.52,23.776884]
[1731497548008,16.8532,207.68,207.53,0.1]
[1731497548309,0.12549,207.67,207.53,0.2]
[1731497548614,4.8153,207.67,207.54,28.836084]
[1731497549297,4.8153,207.67,207.55,0.1]
[1731497549499,4.8153,207.67,207.56,0.1]
[1731497549709,4.8153,207.67,207.56,23.876884]
[1731497550217,4.8153,207.67,207.58,23.776884]
[1731497550605,4.94009,207.7,207.59,1.4451]
[1731497551006,4.8146,207.7,207.6,23.776884]
[1731497551209,4.8146,207.7,207.59,38.2694]
[1731497551210,4.8134,207.75,207.63,20.0]
[1731497551518,4.8125,207.79,207.66,23.776884]
[1731497551698,4.8125,207.79,207.68,23.776884]
[1731497551899,0.12549,207.78,207.68,23.776884]
[1731497552099,4.8125,207.79,207.68,23.776884]
[1731497552321,0.12549,207.78,207.68,23.776884]
[1731497552514,4.813,207.77,207.68,25.221384]
[1731497552717,31.8034,207.81,207.68,28.832684]
[1731497552926,4.8116,207.83,207.7,23.776884]
[1731497553119,4.8116,207.83,207.73,20.0]
[1731497553422,0.12549,207.82,207.72,13.0489]
[1731497553804,0.12549,207.82,207.69,31.684]
[1731497553805,0.12549,207.82,207.66,13.0489]
[1731497554128,0.12549,207.8,207.64,33.1287]
[1731497554308,0.12549,207.8,207.64,31.684]
[1731497554508,16.8438,207.79,207.64,31.684]
[1731497554819,23.902374,207.77,207.61,12.5199]
[1731497555011,0.12549,207.73,207.61,12.5199]
[1731497555325,0.12549,207.73,207.58,37.101]
[1731497556226,0.12549,207.71,207.59,23.776884]
[1731497557123,0.12549,207.69,207.59,23.776884]
[1731497557424,0.12549,207.71,207.6,5.0577]
[1731497557609,0.12549,207.71,207.6,3.6127]
[1731497557799,0.12549,207.72,207.6,3.6127]
[1731497558413,4.8123,207.8,207.62,20.1]
[1731497558623,4.8123,207.8,207.66,20.1]
[1731497559022,0.12549,207.79,207.67,23.776884]
[1731497559525,4.93819,207.79,207.66,1.4446]
[1731497559734,16.96949,207.79,207.64,5.0566]
[1731497560324,16.96949,207.79,207.65,23.776884]
[1731497560531,4.8127,207.79,207.65,23.776884]
[1731497560831,4.8127,207.79,207.67,36.653284]
[1731497561421,0.12549,207.78,207.66,1.4446]
[1731497562520,0.12549,207.78,207.64,5.0566]
[1731497563419,0.12549,207.76,207.64,5.0566]
[1731497564230,20.12549,207.76,207.64,5.0566]
[1731497564828,20.12549,207.76,207.64,3.6119]
[1731497565013,20.12549,207.76,207.62,14.3213]
[1731497565414,0.12549,207.74,207.62,14.3213]
[1731497565720,4.8134,207.75,207.62,17.9336]
[1731497566027,4.8123,207.8,207.65,0.1]
[1731497566425,4.8123,207.8,207.64,0.1]
[1731497566426,0.12549,207.79,207.64,23.776884]
[1731497566808,0.12549,207.79,207.62,25.1583]
[1731497567003,0.12549,207.79,207.62,3.6123]
[1731497567208,23.902374,207.77,207.62,3.6123]
[1731497567414,0.12549,207.75,207.62,3.6123]
[1731497567622,23.902374,207.75,207.62,3.6123]
[1731497568129,45.5576,207.72,207.59,1.4451]
[1731497568335,20.12549,207.71,207.59,1.4451]
[1731497568634,0.12549,207.71,207.59,1.4451]
[1731497569030,0.12549,207.71,207.6,23.776884]
[1731497569535,4.8146,207.7,207.61,3.6125]
[1731497570647,0.12549,207.69,207.61,3.6125]
[1731497571838,4.94009,207.7,207.61,3.6125]
[1731497576039,4.8144,207.71,207.61,3.6125]
[1731497579626,4.8139,207.74,207.62,23.776884]
[1731497579832,32.0812,207.77,207.65,20.0]
[1731497580119,4.812,207.81,207.67,32.2587]
[1731497580346,4.812,207.81,207.7,23.776884]
[1731497580518,0.12549,207.8,207.68,23.776884]
[1731497580937,4.8111,207.85,207.7,23.776884]
[1731497581317,0.12549,207.84,207.7,23.776884]
[1731497581630,0.12549,207.84,207.71,5.0551]
[1731497581631,0.12549,207.82,207.71,5.0551]
[1731497582434,0.12549,207.82,207.72,23.776884]
[1731497582633,4.8116,207.83,207.72,23.776884]
[1731497582821,0.12549,207.84,207.73,5.0545]
[1731497583017,12.0279,207.85,207.73,5.0545]
[1731497583819,0.12549,207.84,207.73,3.6104]
[1731497585244,4.8116,207.83,207.73,3.6104]
[1731497585430,4.8104,207.88,207.74,23.776884]
[1731497586521,0.12549,207.87,207.75,3.6101]
[1731497587962,4.93589,207.88,207.75,3.6101]
[1731497589126,4.8104,207.88,207.76,54.025084]
[1731497590142,0.12549,207.85,207.77,3.6097]
[1731497590632,0.12549,207.85,207.73,5.0544]
[1731497591031,0.12549,207.85,207.73,3.6103]
[1731497591719,23.902374,207.83,207.68,5.0556]
[1731497591921,20.0,207.84,207.68,5.0556]
[1731497592127,4.8116,207.83,207.68,5.0556]
[1731497592328,4.8088,207.95,207.79,46.3007]
[1731497592531,32.5962,207.96,207.79,46.4007]
[1731497592830,32.5962,207.96,207.81,0.1]
[1731497593136,32.5962,207.96,207.81,23.876884]
[1731497593341,32.5962,207.96,207.83,23.776884]
[1731497593838,37.4048,207.96,207.84,5.0519]
[1731497594344,32.5962,207.96,207.85,23.776884]
[1731497594844,24.93309,208.0,207.85,23.776884]
[1731497595032,24.8076,208.0,207.85,23.776884]
[1731497595822,0.12549,207.99,207.86,5.0513]
[1731497597441,0.12549,207.97,207.86,3.6081]
[1731497598342,0.12549,207.99,207.86,3.6081]
[1731497598524,4.93339,207.99,207.87,23.776884]
[1731497599842,4.93339,207.99,207.88,3.6078]
[1731497601245,4.93339,207.99,207.88,5.0509]
[1731497601455,4.93339,207.99,207.88,3.6078]
[1731497601949,4.93339,207.99,207.88,5.0509]
[1731497603538,4.93339,207.99,207.88,3.6078]
[1731497604847,4.93339,207.99,207.88,5.0509]
[1731497605857,4.93339,207.99,207.8,5.0528]
[1731497605858,23.902374,207.97,207.8,5.0528]
[1731497606059,23.902374,207.95,207.8,5.0528]
[1731497606262,23.902374,207.93,207.8,3.6092]
[1731497606434,20.0,207.9,207.79,46.3007]
[1731497606959,43.776884,207.98,207.79,51.3538]
[1731497607752,16.95469,207.97,207.81,5.0526]
[1731497607943,43.776884,207.96,207.81,5.0526]
[1731497608138,0.12549,207.95,207.81,5.0526]
[1731497609353,0.12549,207.93,207.81,3.609]
[1731497610248,43.776884,207.96,207.81,3.609]
[1731497610249,16.95639,207.95,207.81,3.609]
[1731497613551,0.12549,207.93,207.81,3.609]
[1731497613738,16.95799,207.93,207.81,3.609]
[1731497614440,0.12549,207.91,207.79,46.3007]
[1731497615851,43.776884,207.92,207.79,46.3007]
[1731497615852,0.12549,207.89,207.79,46.3007]
[1731497616474,23.902374,207.89,207.79,46.3007]
[1731497616634,23.902374,207.85,207.74,45.2841]
[1731497616955,0.12549,207.81,207.68,45.2841]
[1731497617165,23.902374,207.79,207.68,45.2841]
[1731497617457,0.12549,207.79,207.68,45.2841]
[1731497617852,40.8907,207.87,207.68,50.3399]
[1731497618035,45.70138,207.86,207.68,50.3399]
[1731497618243,43.776884,207.86,207.68,50.3399]
[1731497618642,0.12549,207.85,207.69,20.0]
[1731497619044,0.12549,207.83,207.7,5.0552]
[1731497620664,20.12549,207.83,207.7,5.0552]
[1731497620956,0.12549,207.81,207.7,5.0552]
[1731497621844,4.93729,207.82,207.7,5.0552]
[1731497623259,4.93729,207.82,207.7,3.6109]
[1731497623454,0.12549,207.8,207.7,3.6109]
[1731497623665,23.902374,207.8,207.68,45.2841]
[1731497623867,23.902374,207.8,207.68,46.7286]
[1731497624163,23.902374,207.8,207.68,45.2841]
[1731497625035,23.902374,207.8,207.68,46.7286]
[1731497625640,0.12549,207.78,207.68,46.7286]
[1731497627241,0.12549,207.78,207.68,45.2841]
[1731497627444,0.12549,207.79,207.68,45.2841]
[1731497627645,24.93799,207.79,207.68,45.2841]
[1731497628850,36.96929,207.79,207.68,45.2841]
[1731497631367,4.8118,207.82,207.69,23.776884]
[1731497632461,2.49352323,207.85,207.71,43.776884]
[1731497632462,4.8113,207.84,207.71,43.776884]
[1731497633045,12.0246,207.91,207.72,0.2]
[1731497633247,4.81,207.9,207.74,43.876884]
[1731497633464,4.81,207.9,207.74,43.976884]
[1731497633850,4.809,207.94,207.77,0.1]
[1731497634046,0.12549,207.93,207.77,0.2]
[1731497634866,4.93429,207.95,207.78,5.0533]
[1731497635052,4.93429,207.95,207.79,43.776884]
[1731497635665,4.8088,207.95,207.79,43.776884]
[1731497636056,4.8088,207.95,207.8,5.0528]
[1731497636368,0.12549,207.94,207.8,5.0528]
[1731497637071,4.8079,207.99,207.81,89.155184]
[1731497637572,0.12549,207.98,207.81,88.955184]
[1731497638263,0.12549,207.99,207.81,88.955184]
[1731497638569,40.730074,207.99,207.83,20.0]
[1731497639655,40.730074,207.99,207.82,5.0523]
[1731497639978,0.12549,207.95,207.81,46.6219]
[1731497640486,20.0,207.98,207.81,46.6219]
[1731497640961,0.12549,207.95,207.81,50.2309]
[1731497641870,23.776884,207.93,207.77,5.0535]
[1731497642286,0.12549,207.92,207.77,5.0535]
[1731497643074,0.12549,207.9,207.78,20.0]
[1731497643251,0.12549,207.9,207.77,5.0535]
[1731497644054,0.12549,207.9,207.76,3.3692]
[1731497644369,2.57615884,207.95,207.8,43.0335]
[1731497644573,2.57615884,207.95,207.83,23.776884]
[1731497644773,2.57615884,207.95,207.84,20.0]
[1731497644977,2.57615884,207.95,207.87,23.776884]
[1731497645360,4.93309,208.0,207.87,23.776884]
[1731497646265,21.98199195,208.01,207.9,20.0]
[1731497646469,21.98199195,208.01,207.91,23.776884]
[1731497646971,26.78939195,208.01,207.91,23.776884]
[1731497647157,26.78939195,208.01,207.92,3.3666]
[1731497650567,0.12549,208.0,207.92,3.3666]
[1731497650760,4.93329,208.0,207.88,2.4051]
[1731497652369,0.12549,207.96,207.88,2.4051]
[1731497653075,13.98067614,207.96,207.85,43.9956]
[1731497653776,13.85518614,207.95,207.85,46.4011]
[1731497654082,4.93409,207.96,207.8,2.406]
[1731497654083,13.85518614,207.89,207.8,2.406]
[1731497654264,13.85518614,207.9,207.8,2.406]
[1731497654584,13.85518614,207.84,207.78,45.3544]
[1731497655079,13.85518614,207.85,207.78,45.3544]
[1731497655260,13.85518614,207.85,207.74,3.3695]
[1731497655864,0.12549,207.89,207.74,3.3695]
[1731497655865,18.66598614,207.87,207.74,23.3695]
[1731497656066,0.12549,207.89,207.74,23.3695]
[1731497656067,0.12549,207.89,207.78,20.0]
[1731497656267,0.12549,207.89,207.79,23.776884]
[1731497656568,0.12549,207.89,207.8,20.0]
[1731497657680,4.93569,207.89,207.77,23.776884]
[1731497657990,4.93569,207.89,207.78,3.3688]
[1731497658963,0.12549,207.89,207.8,20.1]
[1731497659165,0.12549,207.89,207.83,70.061884]
[1731497659975,0.12549,207.89,207.84,23.3678]
[1731497660471,0.12549,207.89,207.84,3.3678]
[1731497663469,4.93569,207.89,207.82,0.9623]
[1731497663680,27.11296328,207.89,207.8,3.3685]
[1731497664084,4.93569,207.89,207.8,3.3685]
[1731497666688,0.12549,207.89,207.82,20.0]
[1731497667484,0.12549,207.89,207.8,8.1808]
[1731497667485,0.12549,207.89,207.84,20.0]
[1731497668882,0.12549,207.89,207.85,3.3677]
[1731497671003,0.12549,207.89,207.85,2.4055]
[1731497671176,0.12549,207.89,207.87,20.0]
[1731497671494,0.12549,207.89,207.85,2.4055]
[1731497671495,0.12549,207.89,207.88,20.0]
[1731497671990,0.12549,207.89,207.86,23.776884]
[1731497672773,0.12549,207.89,207.87,3.3674]
[1731497674203,0.12549,207.89,207.88,87.653574]
[1731497674401,21.98199195,208.01,207.94,160.27451]
[1731497674600,21.98199195,208.01,207.92,23.776884]
[1731497674805,21.98199195,208.01,207.94,23.776884]
[1731497674998,21.98199195,208.01,207.96,23.776884]
[1731497675901,21.98199195,208.03,207.95,3.3661]
[1731497676902,21.98199195,208.03,207.95,2.4044]
[1731497677509,21.98199195,208.03,207.96,23.776884]
[1731497679094,21.98199195,208.03,207.97,3.3657]
[1731497680309,21.98199195,208.03,207.97,2.4041]
[1731497681005,26.78899195,208.03,207.97,2.4041]
[1731497682209,21.98199195,208.03,207.97,2.4041]
[1731497684210,21.98199195,208.03,207.98,23.776884]
[1731497684897,21.98199195,208.03,207.99,1.6826]
[1731497685317,21.98199195,208.03,207.99,1.2019]
[1731497686296,21.98199195,208.03,207.9,0.2]
[1731497686510,21.98199195,208.03,207.94,20.0]
[1731497686825,21.98199195,208.03,207.95,23.776884]
[1731497686995,21.98199195,208.03,207.96,20.0]
[1731497687594,21.98199195,208.03,207.95,23.776884]
[1731497688102,21.98199195,208.03,207.96,1.6829]
[1731497689599,21.98199195,208.03,207.98,1.6828]
[1731497691015,21.98199195,208.03,208.01,23.776884]
[1731497691602,21.98199195,208.03,208.02,0.4807]
[1731497693299,21.98199195,208.03,208.01,24.978684]
[1731497693300,21.98199195,208.03,208.01,1.2018]
[1731497694118,21.98199195,208.03,208.0,23.776884]
[1731497696611,21.98199195,208.03,207.95,20.0]
[1731497697318,21.98199195,208.03,207.96,0.12549]
[1731497697894,21.98199195,208.03,207.96,23.902374]
[1731497698214,21.98199195,208.03,207.99,20.0]
[1731497698413,21.98199195,208.03,207.98,23.776884]
[1731497698619,21.98199195,208.03,207.98,23.902374]
[1731497702610,40.63200005,208.03,207.89,51.53056282]
[1731497702920,13.8429081,208.01,207.89,44.9027]
[1731497703909,13.8429081,207.99,207.84,45.2969]
[1731497704123,4.8081,207.98,207.84,45.2969]
[1731497704508,4.8081,207.98,207.85,0.12549]
[1731497704703,13.8429081,207.97,207.84,45.2969]
[1731497705115,4.8081,207.98,207.85,0.12549]
[1731497705915,12.2476,207.99,207.87,0.22549]
[1731497706236,21.98199195,208.0,207.87,0.22549]
[1731497706237,26.78969195,208.0,207.87,0.22549]
[1731497706930,26.78969195,208.0,207.87,24.002374]
[1731497707235,26.78969195,208.0,207.9,20.0]
[1731497707410,26.78969195,208.0,207.89,23.776884]
[1731497707411,40.63260005,208.0,207.89,23.776884]
[1731497707731,40.63260005,208.0,207.85,23.776884]
[1731497707924,40.63260005,208.0,207.86,0.12549]
[1731497708313,52.65180005,208.0,207.86,0.12549]
[1731497708830,26.78969195,208.0,207.88,0.12549]
[1731497709010,26.78969195,208.0,207.9,0.12549]
[1731497710429,40.63260005,208.0,207.9,0.12549]
[1731497710823,40.63260005,208.0,207.87,23.776884]
[1731497711013,13.8429081,207.98,207.87,23.776884]
[1731497711217,52.65180005,208.0,207.87,0.12549]
[1731497711729,13.8429081,207.98,207.87,0.12549]
[1731497711923,4.8083,207.97,207.86,0.12549]
[1731497712134,44.1530081,207.96,207.86,0.12549]
[1731497712509,30.3101,207.96,207.82,0.12549]
[1731497712713,30.3101,207.96,207.83,0.1]
[1731497712909,35.1188,207.96,207.84,0.12549]
[1731497713128,35.1188,207.96,207.86,20.12549]
[1731497713326,35.1188,207.96,207.88,20.12549]
[1731497714143,34.00119195,208.0,207.9,20.12549]
[1731497714144,4.8079,207.99,207.9,20.12549]
[1731497714313,21.98199195,208.0,207.94,0.12549]
[1731497714513,21.98199195,208.0,207.96,0.12549]
[1731497714912,21.98199195,208.03,207.98,20.12549]
[1731497715114,21.98199195,208.03,207.99,23.776884]
[1731497715320,21.98199195,208.03,208.0,0.12549]
[1731497716129,21.98199195,208.03,208.02,23.902374]
[1731497716821,21.98199195,208.03,208.01,3.3651]
[1731497717025,26.78899195,208.03,207.93,20.9618]
[1731497717224,21.98199195,208.03,207.93,0.9618]
[1731497717529,21.98199195,208.03,207.94,0.12549]
[1731497718227,21.98199195,208.03,207.96,0.12549]
[1731497718429,26.78899195,208.03,207.95,2.4044]
[1731497718623,13.8429081,208.02,207.89,44.523]
[1731497718824,20.0,208.01,207.9,3.3669]
[1731497719020,20.0,208.01,207.91,0.12549]
[1731497719222,20.0,208.01,207.9,3.3669]
[1731497719415,13.8429081,208.0,207.9,3.3669]
[1731497720411,13.8429081,208.0,207.85,2.71381712]
[1731497720612,4.8079,207.99,207.85,5.95602712]
[1731497721021,4.8079,207.99,207.86,0.12549]
[1731497722038,4.8079,207.99,207.86,23.902374]
[1731497722218,13.8429081,207.96,207.85,3.3677]
[1731497722424,13.8429081,207.94,207.79,44.2914]
[1731497722626,46.6827081,207.92,207.8,3.3685]
[1731497723339,35.82490005,208.0,207.8,3.3685]
[1731497723340,13.8429081,207.98,207.82,0.1]
[1731497723553,46.6827081,207.98,207.82,0.1]
[1731497724023,4.8085,207.97,207.84,0.22549]
[1731497724654,4.8085,207.97,207.86,23.902374]
[1731497726133,4.8085,207.97,207.88,23.902374]
[1731497727341,4.8085,207.97,207.9,23.776884]
[1731497728545,4.8085,207.97,207.9,24.738784]
[1731497729231,13.8429081,207.96,207.9,24.738784]
[1731497729632,18.6515081,207.96,207.9,24.738784]
[1731497730041,18.6515081,207.96,207.89,2.4051]
[1731497730348,18.6515081,207.96,207.75,3.3693]
[1731497730349,13.8429081,207.9,207.75,3.3693]
[1731497730642,20.0,207.94,207.75,3.3693]
[1731497730643,13.8429081,207.88,207.75,3.3693]
[1731497730839,13.8429081,207.92,207.76,0.1]
[1731497731045,26.0575081,207.95,207.78,0.1]
[1731497731640,4.809,207.94,207.8,0.12549]
[1731497731945,4.8086,207.96,207.82,20.12549]
[1731497732446,4.8086,207.96,207.84,0.12549]
[1731497732842,4.8086,207.96,207.84,20.12549]
[1731497733022,4.8086,207.96,207.86,0.12549]
[1731497733223,4.8086,207.96,207.86,23.902374]
[1731497734133,4.8086,207.96,207.88,23.902374]
[1731497735144,4.8086,207.96,207.88,24.864374]
[1731497735333,4.8086,207.96,207.88,24.738884]
[1731497736625,46.49319195,208.0,207.9,23.776884]
[1731497736626,4.8083,207.98,207.9,23.776884]
[1731497736838,21.98199195,208.0,207.91,0.12549]
[1731497737149,21.98199195,208.0,207.93,20.12549]
[1731497737444,21.98199195,208.0,207.97,0.12549]
[1731497738131,21.98199195,208.0,207.96,23.776884]
[1731497738634,26.78969195,208.0,207.94,23.776884]
[1731497743253,26.78969195,208.0,207.94,0.9618]
[1731497743431,26.78969195,208.0,207.93,24.738684]
[1731497746055,21.98199195,208.0,207.93,23.776884]
[1731497746261,21.98199195,208.0,207.95,23.902374]
[1731497747462,21.98199195,208.0,207.95,24.864074]
[1731497747844,21.98199195,208.0,207.95,27.268474]
[1731497751254,21.98199195,208.03,207.95,27.268474]
[1731497754660,26.78909195,208.03,207.95,27.268474]
[1731497755661,21.98199195,208.03,207.97,0.12549]
[1731497755844,21.98199195,208.03,207.97,23.902374]
[1731497756661,26.78899195,208.03,207.97,23.902374]
[1731497757154,21.98199195,208.03,207.97,23.902374]
[1731497757944,21.98199195,208.03,207.99,23.902374]
[1731497759850,21.98199195,208.03,207.99,24.863874]
[1731497760446,21.98199195,208.03,207.96,44.5179]
[1731497760447,26.78899195,208.03,207.96,32.1258]
[1731497760654,40.63190005,208.03,207.94,3.3662]
[1731497760861,4.8076,208.0,207.92,44.6896]
[1731497761364,13.8429081,207.99,207.92,44.6896]
[1731497761741,13.8429081,207.99,207.92,31.7462]
[1731497762058,13.8429081,207.99,207.9,3.3668]
[1731497762664,13.8429081,207.97,207.91,23.776884]
[1731497763173,18.6513081,207.97,207.91,24.738784]
[1731497763462,4.8084,207.97,207.9,2.4049]
[1731497763666,4.8084,207.97,207.86,2.4053]
[1731497763667,13.8429081,207.92,207.86,2.4053]
[1731497763964,4.8084,207.97,207.86,3.3674]
[1731497764145,4.8081,207.99,207.86,3.3674]
[1731497764675,4.8081,207.99,207.87,0.12549]
[1731497765058,18.6510081,207.99,207.88,3.3672]
[1731497765369,21.98199195,208.0,207.91,12.2144]
[1731497765676,21.98199195,208.0,207.93,0.12549]
[1731497766046,21.98199195,208.03,207.93,0.12549]
[1731497766243,21.98199195,208.03,207.95,20.12549]
[1731497766450,21.98199195,208.03,207.97,0.12549]
[1731497766751,26.78899195,208.03,207.96,23.776884]
[1731497766957,13.8429081,208.01,207.96,23.776884]
[1731497767160,13.8429081,208.0,207.96,23.776884]
[1731497767352,13.8429081,208.02,207.96,23.776884]
[1731497767665,21.98199195,208.03,207.97,0.12549]
[1731497768168,26.78899195,208.03,207.97,0.12549]
[1731497768563,13.8429081,208.02,207.97,0.12549]
[1731497768949,13.8429081,208.0,207.92,2.4047]
[1731497769260,18.6508081,207.99,207.92,3.3665]
[1731497769772,35.82490005,208.0,207.93,0.12549]
[1731497770068,13.8429081,207.99,207.93,0.12549]
[1731497770250,35.82490005,208.0,207.93,0.12549]
[1731497770567,35.82490005,208.0,207.93,23.902374]
[1731497770764,40.63260005,208.0,207.93,27.268774]
[1731497770954,40.63260005,208.0,207.95,0.12549]
[1731497770955,21.98199195,208.0,207.95,0.12549]
[1731497772050,21.98199195,208.03,207.95,0.12549]
[1731497772255,21.98199195,208.03,207.97,0.12549]
[1731497772455,21.98199195,208.03,208.0,12.9069]
[1731497772659,13.8429081,208.13,208.09,23.902374]
[1731497772859,12.0073,208.21,208.09,23.902374]
[1731497772860,18.6466081,208.17,208.09,24.863374]
[1731497773370,13.8429081,208.13,208.08,2.4028]
[1731497773574,13.8429081,208.13,208.04,23.902374]
[1731497773866,13.8429081,208.1,208.04,26.180184]
[1731497774072,13.8429081,208.08,208.0,12.9069]
[1731497774278,13.8429081,208.08,208.01,27.141984]
[1731497774478,13.8429081,208.06,208.01,2.4037]
[1731497774856,13.8429081,208.04,207.98,31.9429]
[1731497775053,13.8429081,208.03,207.98,31.9429]
[1731497775266,13.8429081,208.02,207.95,12.9069]
[1731497775570,13.8429081,207.98,207.93,34.3475]
[1731497775769,13.8429081,207.98,207.93,31.9429]
[1731497775967,13.8429081,207.96,207.9,13.8688]
[1731497776778,18.6512081,207.98,207.91,0.12549]
[1731497776957,18.6512081,207.98,207.9,16.2738]
[1731497777152,13.8429081,207.96,207.9,12.9069]
[1731497777359,13.8429081,207.94,207.88,31.9429]
[1731497777553,13.8429081,207.94,207.88,32.9049]
[1731497778172,13.8429081,207.94,207.89,0.12549]
[1731497778367,13.8429081,207.95,207.89,0.12549]
[1731497778567,13.8429081,207.93,207.88,31.9429]
[1731497778879,4.8088,207.95,207.88,0.12549]
[1731497778880,13.8429081,207.94,207.88,0.12549]
[1731497779051,13.8429081,207.96,207.88,0.12549]
[1731497779251,13.8429081,208.0,207.88,0.12549]
[1731497779475,4.8058,208.08,207.94,43.902374]
[1731497780252,18.6485081,208.09,207.94,43.902374]
[1731497780655,18.6485081,208.09,207.96,23.902374]
[1731497781375,4.8044,208.14,207.98,23.902374]
[1731497781570,13.8429081,208.11,208.0,23.902374]
[1731497781775,13.8429081,208.09,207.99,0.12549]
[1731497782567,18.6487081,208.09,208.01,23.902374]
[1731497782770,26.95114064,208.09,208.01,23.902374]
[1731497784167,26.95114064,208.09,208.01,24.863774]
[1731497784479,26.95114064,208.09,208.01,23.776884]
[1731497784673,26.95114064,208.09,208.0,3.3653]
[1731497784976,22.14534064,208.04,207.94,20.0]
[1731497785278,22.14534064,208.06,207.95,0.12549]
[1731497785474,22.14534064,208.08,207.95,0.12549]
[1731497785854,4.8047,208.13,207.97,0.1]
[1731497786064,4.8047,208.13,207.99,20.0]
[1731497786264,4.8047,208.13,208.02,23.902374]
[1731497786468,22.14534064,208.14,208.02,23.902374]
[1731497786671,4.8044,208.15,208.02,23.902374]
[1731497787081,22.14534064,208.14,208.02,23.902374]
[1731497787761,4.8046,208.13,208.04,23.902374]
[1731497788179,22.14534064,208.14,208.06,23.902374]
[1731497788479,26.94984064,208.14,208.06,23.902374]
[1731497789460,26.94984064,208.14,208.07,0.9612]
[1731497789664,26.94984064,208.14,208.06,23.902374]
[1731497789864,26.94984064,208.14,208.06,24.863574]
[1731497791172,4.8045,208.14,208.06,27.266674]
[1731497791479,22.14534064,208.21,208.06,32.072974]
[1731497791662,22.14534064,208.19,208.08,23.902374]
[1731497792872,22.14534064,208.19,208.1,0.12549]
[1731497793090,22.14534064,208.19,208.1,23.902374]
[1731497793288,4.8021,208.24,208.1,23.902374]
[1731497793490,22.14534064,208.23,208.12,23.902374]
[1731497793666,27.42414994,208.25,208.14,23.902374]
[1731497793863,22.14534064,208.21,208.14,23.902374]
[1731497794181,22.14534064,208.19,208.14,23.902374]
[1731497794498,22.14534064,208.21,208.14,23.902374]
[1731497794989,26.94824064,208.21,208.14,25.343674]
[1731497795164,26.94774064,208.23,208.14,25.343674]
[1731497795371,26.94774064,208.23,208.14,28.946974]
[1731497795770,22.14534064,208.21,208.14,28.946974]
[1731497796177,0.4769093,208.25,208.14,28.946974]
[1731497796371,27.42424994,208.25,208.16,23.902374]
[1731497796570,22.14534064,208.23,208.16,23.902374]
[1731497796775,22.14534064,208.21,208.16,0.12549]
[1731497797082,22.14534064,208.21,208.17,1.4411]
[1731497797267,22.14534064,208.21,208.16,0.12549]
[1731497797467,22.14534064,208.21,208.15,23.776884]
[1731497798368,22.14534064,208.21,208.16,1.56659]
[1731497798984,22.14534064,208.23,208.16,1.56659]
[1731497799289,22.14534064,208.23,208.16,5.16949]
[1731497800389,22.14534064,208.21,208.16,5.16949]
[1731497801380,22.14534064,208.21,208.17,23.776884]